Cogmind - Beta 14 @@@ ROGUE MODE // 2025.03.16 @ 13:33:04 Player: Lexipup Result: Destroyed by S-10 Pest with Light Assault Rifle Performance ------------- Evolutions (0) 0 Regions Visited (1) 200 Robots Destroyed (3) 15 Value Destroyed (38) 38 Prototype IDs (0) 0 Alien Tech Used (0) 0 Bonus (0) 0 TOTAL SCORE: 253 Bonus ------- None Cogmind --------- Core Integrity 0/250 Matter 286/300 Energy 99/100 System Corruption 0% Temperature Cool (0) Movement Core (50) Location -10/Materials Parts ------- > --- POWER (1) -------- (None) > --- PROPULSION (2) --- (None) > --- UTILITY (2) ------ (None) > --- WEAPON (2) ------- (None) > --- INVENTORY (5) ---- Ion Engine Small Storage Unit Peak State ------------ > --- POWER ------------ Ion Engine > --- PROPULSION ------- Light Treads Light Treads > --- UTILITY ---------- (None) > --- WEAPON ----------- EM Pulse Gun EM Pulse Gun > --- INVENTORY -------- (None) [Rating: 5] Favorites ----------- Power Ion Engine Engine Ion Engine Propulsion Light Treads Treads Light Treads Hover Unit Hover Unit Utility ECM Suite Device ECM Suite Weapon EM Pulse Gun Energy Gun EM Pulse Gun Special Weapon Mining Laser Build | -11 -10 ------- Run | Yrd Mat Slots Evolved . | . . Power . | . . Propulsion . | . . Utility . | . . Weapon . | . . Parts Attached 8 | 5 3 Power 1 | 1 . Engine 1 | 1 . Core . | . . Reactor . | . . Propulsion 3 | 2 1 Treads 2 | 2 . Leg . | . . Wheel . | . . Hover 1 | . 1 Flight . | . . Utility 1 | . 1 Device 1 | . 1 Storage . | . . Processor . | . . Hackware . | . . Protection . | . . Artifact . | . . Weapon 3 | 2 1 Energy Gun 2 | 2 . Energy Cannon . | . . Ballistic Gun . | . . Ballistic Cannon . | . . Launcher . | . . Special Weapon 1 | . 1 Impact Weapon . | . . Slashing Weapon . | . . Piercing Weapon . | . . Special Melee Weapon . | . . Unidentified Prototypes . | . . Parts Lost 6 | . 6 Power 1 | . 1 Propulsion 1 | . 1 Utility 1 | . 1 Weapon 3 | . 3 Highest Loss Streak 6 | . 6 To Critical Strikes . | . . Average Slot Usage (%) 55 | . 55 Engine 11 | . 11 Treads 13 | . 13 Hover 4 | . 4 Device 3 | . 3 Energy Gun 21 | . 21 Peak Build Rating 5 | 5 5 Average Rating 3 | 3 3 On Entrance 2 | . 5 Naked Turns 34 | . 34 Heaviest Build 11 | 9 11 Greatest Support 40 | 40 40 Greatest Overweight (x) 1 | . 1 Average Overweight (x) . | . . Largest Inventory Capacity 5 | 5 5 Average Capacity 5 | 5 5 Most Carried 5 | 5 4 Average Carried 2 | 1 2 Final Capacity 5 | 5 5 Final Carried 2 | 2 2 Class Distribution -------------------- 100% | Mutant Dominant Class ---------------- Mutant | -10/Materials Resources | -11 -10 ----------- Run | Yrd Mat Matter Collected 236 | 236 . Remotely . | . . Salvage Created 64 | . 64 Parts 6 | . 6 Haulers Intercepted . | . . Recyclers Shooed . | . . Parts Field Recycled . | . . Retrieved Matter . | . . Parts Self-Destructed . | . . Prevented . | . . Kills | -11 -10 ------- Run | Yrd Mat Combat Hostiles Destroyed . | . . Classes Destroyed 2 | . 2 Worker 2 | . 2 Watcher 1 | . 1 Best Kill Streak 2 | . 2 Combat Bots Only . | . . Max Kills in Single Turn 2 | . 2 Gunslinging . | . . Exploded . | . . Melee . | . . Uniques/NPCs Destroyed . | . . Combat | -11 -10 -------- Run | Yrd Mat Hostile Shots Fired 65 | . 65 Missed 12 | . 12 Damage Taken 524 | . 524 Core 254 | . 254 Absorbed by Shields . | . . Core Remaining (%) 100 | 100 . Volleys Fired 13 | . 13 Largest 2 | . 2 Hottest 100 | . 100 Shots Fired 21 | . 21 Gun 18 | . 18 Cannon . | . . Launcher . | . . Special 3 | . 3 Kinetic . | . . Thermal 3 | . 3 Explosive . | . . Electromagnetic 18 | . 18 Robot Hit Streak 1 | . 1 Robot Miss Streak 9 | . 9 Penetration Max . | . . Secondary Targets . | . . Shots Hit Robots 1 | . 1 Core Hits 3 | . 3 Critical Kills . | . . Critical Parts Destroyed . | . . Critical Strikes . | . . Melee Attacks . | . . Impact . | . . Slashing . | . . Piercing . | . . Sneak Attacks . | . . Combat Hostiles . | . . Follow-up Attacks . | . . Damage Inflicted 173 | . 173 Guns 48 | . 48 Cannons . | . . Explosions 125 | . 125 Melee . | . . Ramming . | . . Kinetic . | . . Thermal 125 | . 125 Explosive . | . . Electromagnetic 48 | . 48 Impact . | . . Slashing . | . . Piercing . | . . Highest Corruption . | . . Average Corruption . | . . Corruption Purged . | . . Corruption Blocked . | . . Overload Shots . | . . Overflow Damage . | . . Projectiles . | . . Explosions . | . . Melee . | . . Knockbacks . | . . Impact . | . . Kinetic . | . . Secondary . | . . Self-Inflicted Damage 87 | . 87 Shots 1 | . 1 Rammed . | . . Targets Rammed . | . . Kicked . | . . Crushed . | . . Highest Temperature 72 | . 72 Average Temperature 25 | . 25 Received Heat Transfer . | . . Siege Activations . | . . Robots Corrupted . | . . Combat Hostiles . | . . Parts Fried . | . . Impact Corruptions . | . . Robots Melted . | . . Combat Hostiles . | . . Parts Melted . | . . Heat Transferred 200 | . 200 Parts Sabotaged . | . . Parts Stolen . | . . Parts Stripped . | . . Power Chain Reactions 1 | . 1 Alert | -11 -10 ------- Run | Yrd Mat Peak Influence 78 | . 78 Initial . | . . Average 27 | . 37 Maximum Alert Level . | . . Low Security (%) 100 | 100 100 Level 1 . | . . Level 2 . | . . Level 3 . | . . Level 4 . | . . Level 5 . | . . High Security . | . . Max Security . | . . Squads Dispatched . | . . Investigation . | . . Extermination . | . . Reinforcement . | . . Assault . | . . Garrison . | . . Intercept . | . . Searches Triggered . | . . Construction Impeded . | . . Haulers Reinforced . | . . Active Scanning Responses . | . . Cargo Convoy Interrupts . | . . Stealth | -11 -10 --------- Run | Yrd Mat Distress Signals . | . . Communications Jammed . | . . Distress Signals . | . . Times Spotted 4 | . 4 Peak Tracking Total 3 | . 3 Tactical Retreats . | . . Traps | -11 -10 ------- Run | Yrd Mat Traps Triggered . | . . Indirectly . | . . Trap Hack Attempts . | . . Triggered . | . . Disarmed . | . . Reprogrammed . | . . Reused . | . . Traps Extracted . | . . Installed . | . . Triggered . | . . Machines | -11 -10 ---------- Run | Yrd Mat Machines Disabled 2 | . 2 Max in Single Turn 1 | . 1 Machines Repaired . | . . Machines Dismantled . | . . Machines Sabotaged . | . . Overloaded Fab Kills . | . . Hacking | -11 -10 --------- Run | Yrd Mat Machines Accessed . | . . Terminals . | . . Fabricators . | . . Repair Stations . | . . Recycling Units . | . . Scanalyzers . | . . Garrison Access . | . . Total Hacks . | . . Successful . | . . Failed . | . . Catastrophic . | . . Database Lockouts . | . . Manual . | . . Terminals . | . . Fabricators . | . . Repair Stations . | . . Recycling Units . | . . Scanalyzers . | . . Garrison Access . | . . Terminal Hacks . | . . Fabricator Hacks . | . . Repair Station Hacks . | . . Recycling Unit Hacks . | . . Scanalyzer . | . . Garrison Access Hacks . | . . Unauthorized Hacks . | . . Terminals . | . . Fabricators . | . . Repair Stations . | . . Recycling Units . | . . Scanalyzers . | . . Garrison Access . | . . Data Cores Recovered . | . . Used . | . . Hacking Detections . | . . Full Trace Events . | . . Feedback Events . | . . Feedback Blocked . | . . Robot Schematics Acquired . | . . Robots Built . | . . Authchips . | . . Time . | . . Total Robot Build Rating . | . . Part Schematics Acquired . | . . Parts Built . | . . Authchips . | . . Time . | . . Total Part Build Rating . | . . Parts Repaired . | . . Time . | . . Parts Recycled . | . . Recycled Matter . | . . Retrieved Matter . | . . Retrieved Components . | . . Parts Scanalyzed . | . . Part Schematics Acquired . | . . Parts Damaged . | . . Bothacking | -11 -10 ------------ Run | Yrd Mat Used RIF Installer . | . . Robots Hacked . | . . Non-combat . | . . Combat . | . . Robot Hacks Applied . | . . Relay Couplers Released . | . . Fabnet Peak Effective % . | . . Robots Rewired . | . . Allies Hacked . | . . Hacks Repelled . | . . Allies | -11 -10 -------- Run | Yrd Mat Total Allies . | . . Largest Group . | . . Highest-Rated Group . | . . Highest-Rated Ally . | . . Total Orders . | . . Ally Attacks . | . . Total Damage . | . . Kills . | . . Allies Corrupted . | . . Allies Melted . | . . Intel | -11 -10 ------- Run | Yrd Mat Robot Analysis Total . | . . Derelict Logs Recovered . | . . Drone Launches . | . . Drone Recoveries . | . . Exploration | -11 -10 ------------- Run | Yrd Mat Turns Passed 321 | 91 230 Spaces Moved 240 | 69 171 Core 95 | 29 66 Treads 97 | 40 57 Legs . | . . Wheels . | . . Hover 48 | . 48 Flight . | . . Fastest Speed 50 | 50 50 Average Speed 108 | 113 106 Slowest Speed 160 | 160 160 Overloaded Moves . | . . Propulsion Burnouts . | . . Robots Hopped . | . . Cave-ins Triggered . | . . Exploration Rate (%) 14 | 5 23 Regions Visited 1 Branch Regions . Pre-discovered Areas . | . . Known Exits Taken . | . . Unknown Exits Taken 1 | 1 . Scrap Searched . | . . Spaces Dug . | . . Terrain Destroyed 43 | . 43 Melee . | . . Projectile 1 | . 1 AOE 42 | . 42 Terrain Rammed . | . . Walls Destroyed . | . . Machines Disabled . | . . Actions | -11 -10 --------- Run | Yrd Mat Total 275 | 82 193 Wait . | . . Move 239 | 68 171 Hop . | . . Pick Up 11 | 8 3 Fast Attach . | . . Attach 7 | 5 2 Detach 1 | . 1 Swap 1 | . 1 Drop 3 | 1 2 Fire 13 | . 13 Melee . | . . Ram . | . . Kick . | . . Crush . | . . Escape Stasis . | . . Rewire . | . . Trap . | . . Miscellaneous . | . . Route ------- -11/Scrapyard -10/Materials (discovered 2 exits: [*Mat] / [*Min]) History --------- Turn | Location | Event 9 | -11/Scrapyard | Discovered new exit (range 16) 92 | -11/Scrapyard | Entered Materials 168 | -10/Materials | Discovered new exit (range 14) 291 | -10/Materials | Core integrity fell below 50% 296 | -10/Materials | Discovered new exit (range 15) 314 | -10/Materials | Build established: Mutant 319 | -10/Materials | Lost 6 parts (1p1n1u3w) 319 | -10/Materials | Core integrity fell below 20% 322 | -10/Materials | Destroyed by S-10 Pest with Light Assault Rifle Last Messages --------------- 00202_ Acquired Hover Unit. 00202_ K-01 Serf collects debris. 00205_ Dropped Lgt. Treads. 00214_ K-01 Serf collects debris. 00227_ Acquired ECM Suite. 00234_ Acquired Mining Laser. 00258_ K-01 Serf cleans the Matter Pump. 00261_ Chain reaction triggered in Lgt. Ion Engine. 00261_ K-01 Serf destroyed. 00261_ Matter Pump disabled. 00263_ EM Pulse Gun destroyed. 00266_ K-01 Serf collects debris. 00270_ EM Pulse Gun destroyed. 00281_ Hover Unit destroyed. 00281_ Ion Engine destroyed. 00285_ ECM Suite destroyed. 00288_ Mining Laser destroyed. 00288_ S-10 Pest destroyed. 00296_ EXIT=FOUND Map ----- +----------------------------------------------------+ | #????????????? | | ########### ##????????????? | | #?????????# #?????????????? | | #?????????# #############?? | | #?????????# #?? | | #?????????# #?? | | #?????????# ########## #?? | | #?????????#^ #????????# #?? | | #?????????# #????????# #?? | | #?????????+ #?######## #?? | | #?????????# #?# ## #?? | | #?????????# #?# ## #?? | | #????????? ?# """ ## #?? | | #????????? ?# """ ## ##? | | #???????? ?# """ # #? | | #???????? < ?# + T #? | | #???????# ?# # "" #? | | ##??????#"" "?# """ # #? | | #????????"!!!"?# "R ## ##? | | ##????????"""??# """ ##ss#?? | | #?????????????# "" ## #?? | | #?????????????# ## #?? | | #?????????????######## #?? | | ##????????????????????# #?? | | #????????????????????# #?? | | ##????????????????????# @#?? | | #?????????????????????# #?? | | ##?????????????????????# #?? | | ???????????????????????####?? | | ????????????????????????????? | | ????????????????????????????? | | ????????????????????????????? | | ????????????????????????????? | | | | | | | | | | | | | | | | | | | | | | | | | | | | | | | | | | | +----------------------------------------------------+ Best States ------------- Heat Dissipation 25 Energy Generation 10 Energy Capacity 250 Matter Stores 286 Matter Capacity 300 Sight Range 16 Terrain Scan Density 10 ECM Strength 1 Evasion (%) 50 Recoil Reduction 2 Item Schematics ----------------- None Robot Schematics ------------------ None Fabricated ------------ Nothing Alien Tech Used ----------------- None Achievements -------------- None Challenges ------------ None Game ------ Seed CouplerVampiricAxe Manual? 0 Play Time 00:05:19 Cumulative 1.1 hours Start 2025.03.16 @ 13:29:55 End 2025.03.16 @ 13:33:04 Sessions 1 Manual Loads 0 Difficulty Rogue Special Mode None Game No. 4 Rogue 4 Adventurer 0 Explorer 0 Win Type - Total 0 Types 0/0/0/0/0/0/0/0/0 Lore% 0 Gallery% 5 Achievement% 3 Wizard Run 0 Options --------- Layout 1 ASCII 0 Keyboard 0 Movement Arrows Keybinds 0 Fullscreen 1 Font 24/Smallcaps Map View 50x35 Zoom Use 0% Tactical HUD 1 Map Filters NONE Filters NONE Steam 1 RUN: 7d49670d-6788-46e9-b951-d154a77e5e5e